Cogmind - Beta 12 @@@ ROGUE MODE // 2023.05.13 @ 21:10:29 Player: Ms. V3-11A Result: Destroyed by Y-45 Defender with Heavy Assault Rifle Performance ------------- Evolutions (1) 500 Regions Visited (2) 400 Robots Destroyed (28) 140 Value Destroyed (606) 606 Prototype IDs (0) 0 Alien Tech Used (0) 0 Bonus (0) 0 TOTAL SCORE: 1646 Bonus ------- None Cogmind --------- Core Integrity 0/400 Matter 231/300 Energy 100/100 System Corruption 1% Temperature Cool (0) Movement Core (1350) Ox26 Location -9/Materials Parts ------- > --- POWER (1) -------- (None) > --- PROPULSION (3) --- (None) > --- UTILITY (3) ------ Huge Storage Unit > --- WEAPON (2) ------- (None) > --- INVENTORY (25) --- Ion Engine Ion Engine Large Storage Unit Medium Matter Pod (25) High-capacity Matter Pod (200) High-capacity Matter Pod (97) Grenade Launcher Peak State ------------ > --- POWER ------------ Ion Engine > --- PROPULSION ------- Aluminum Leg Aluminum Leg Aluminum Leg > --- UTILITY ---------- Huge Storage Unit Light Armor Plating > --- WEAPON ----------- Medium Laser Assault Rifle > --- INVENTORY -------- Ion Engine Ion Engine Light Treads Light Treads Large Storage Unit High-capacity Matter Pod High-capacity Matter Pod Light Armor Plating Light Assault Rifle Grenade Launcher Grenade Launcher [Rating: 9] Favorites ----------- Power Ion Engine Engine Ion Engine Propulsion Aluminum Leg Treads Light Treads Leg Aluminum Leg Utility Huge Storage Unit Storage Huge Storage Unit Protection Light Armor Plating Weapon Medium Laser Energy Gun Medium Laser Ballistic Gun Assault Rifle Launcher Grenade Launcher Build | -11 -10 -9 ------- Run | Jun Mat Mat Slots Evolved 2 | . . 2 Power . | . . . Propulsion 1 | . . 1 Utility 1 | . . 1 Weapon . | . . . Parts Attached 14 | 1 4 9 Power . | . . . Engine . | . . . Core . | . . . Reactor . | . . . Propulsion 3 | . . 3 Treads 2 | . . 2 Leg 1 | . . 1 Wheel . | . . . Hover . | . . . Flight . | . . . Utility 5 | . 4 1 Device . | . . . Storage 3 | . 3 . Processor . | . . . Hackware . | . . . Protection 2 | . 1 1 Artifact . | . . . Weapon 6 | 1 . 5 Energy Gun 1 | . . 1 Energy Cannon . | . . . Ballistic Gun 3 | 1 . 2 Ballistic Cannon . | . . . Launcher 2 | . . 2 Special Weapon . | . . . Impact Weapon . | . . . Slashing Weapon . | . . . Piercing Weapon . | . . . Special Melee Weapon . | . . . Unidentified Prototypes . | . . . Parts Lost 12 | . . 12 Power 1 | . . 1 Propulsion 5 | . . 5 Utility 2 | . . 2 Weapon 4 | . . 4 Highest Loss Streak 6 | . . 6 To Critical Strikes . | . . . Average Slot Usage (%) 85 | . 99 70 Engine 9 | . 14 4 Treads 6 | . . 13 Leg 22 | . 28 17 Storage 12 | . 14 11 Protection 8 | . 13 3 Energy Gun 9 | . 14 4 Ballistic Gun 14 | . 14 16 Naked Turns . | . . . Heaviest Build 92 | 14 92 92 Greatest Support 40 | 20 20 40 Greatest Overweight (x) 4 | . 4 4 Average Overweight (x) 1 | . 1 2 Largest Inventory Capacity 25 | 8 25 25 Average Capacity 20 | 8 16 25 Most Carried 12 | 5 12 11 Average Carried 9 | 4 9 8 Final Capacity 25 | 8 25 25 Final Carried 12 | 4 12 7 Class Distribution -------------------- 100% | Mutant Dominant Class ---------------- Mutant | -10/Materials Mutant | -9/Materials Resources | -11 -10 -9 ----------- Run | Jun Mat Mat Matter Collected 792 | 200 51 541 Remotely . | . . . Salvage Created 773 | . 77 696 Parts 48 | . 7 41 Haulers Intercepted 1 | . . 1 Recyclers Shooed . | . . . Parts Field Recycled . | . . . Retrieved Matter . | . . . Parts Self-Destructed . | . . . Prevented . | . . . Kills | -11 -10 -9 ------- Run | Jun Mat Mat Combat Hostiles Destroyed 19 | . 4 15 Guns 13 | . 4 9 AOE 6 | . . 6 Classes Destroyed 9 | . 2 7 Worker 2 | . . 2 Builder 3 | . . 3 Hauler 1 | . . 1 Recycler 2 | . . 2 Watcher 1 | . . 1 Swarmer 7 | . 3 4 Grunt 9 | . 1 8 Duelist 1 | . . 1 Sentry 2 | . . 2 Best Kill Streak 15 | . 2 15 Combat Bots Only 7 | . 2 7 Max Kills in Single Turn 5 | . 1 5 Gunslinging . | . . . Exploded 3 | . . 3 Melee . | . . . Uniques/NPCs Destroyed . | . . . Combat | -11 -10 -9 -------- Run | Jun Mat Mat Damage Taken 1768 | . 167 1601 Core 421 | . 11 410 Absorbed by Shields . | . . . Core Remaining (%) 97 | 100 95 . Volleys Fired 75 | . 15 60 Largest 2 | . 2 2 Hottest 70 | . 70 70 Shots Fired 131 | . 28 103 Gun 122 | . 28 94 Cannon . | . . . Launcher 9 | . . 9 Special . | . . . Kinetic 79 | . 15 64 Thermal 43 | . 13 30 Explosive 9 | . . 9 Electromagnetic . | . . . Robot Hit Streak 14 | . 6 14 Robot Miss Streak 5 | . 3 5 Penetration Max . | . . . Secondary Targets 3 | . . 3 Max Gunslinging Chain 1 | . . 1 Shots Hit Robots 77 | . 14 63 Core Hits 52 | . 6 46 Critical Kills . | . . . Critical Parts Destroyed . | . . . Critical Strikes 7 | . 1 6 Burn 7 | . 1 6 Melee Attacks . | . . . Impact . | . . . Slashing . | . . . Piercing . | . . . Sneak Attacks . | . . . Combat Hostiles . | . . . Follow-up Attacks . | . . . Damage Inflicted 1713 | . 176 1537 Guns 837 | . 176 661 Cannons . | . . . Explosions 876 | . . 876 Melee . | . . . Ramming . | . . . Kinetic 507 | . 100 407 Thermal 330 | . 76 254 Explosive 876 | . . 876 Electromagnetic . | . . . Impact . | . . . Slashing . | . . . Piercing . | . . . Highest Corruption 1 | . . 1 Average Corruption 1 | . . 1 Corruption Purged . | . . . Corruption Blocked . | . . . Overload Shots . | . . . Overflow Damage 36 | . . 36 Projectiles . | . . . Explosions 36 | . . 36 Melee . | . . . Knockbacks . | . . . Impact . | . . . Kinetic . | . . . Secondary . | . . . Self-Inflicted Damage 156 | . . 156 Shots 5 | . . 5 Rammed . | . . . Targets Rammed . | . . . Kicked . | . . . Crushed . | . . . Highest Temperature 204 | . 204 188 Average Temperature 57 | . 78 47 Received Heat Transfer 570 | . 54 516 Siege Activations . | . . . Robots Corrupted . | . . . Combat Hostiles . | . . . Parts Fried . | . . . Impact Corruptions . | . . . Robots Melted . | . . . Combat Hostiles . | . . . Parts Melted 7 | . 1 6 Heat Transferred 1480 | . 296 1184 Parts Sabotaged . | . . . Parts Stolen . | . . . Parts Stripped . | . . . Power Chain Reactions . | . . . Missiles Intercepted . | . . . Alert | -11 -10 -9 ------- Run | Jun Mat Mat Peak Influence 370 | . 130 370 Initial . | . . . Average 114 | . 46 185 Maximum Alert Level 1 | . . 1 Low Security (%) 68 | 100 100 35 Level 1 31 | . . 64 Level 2 . | . . . Level 3 . | . . . Level 4 . | . . . Level 5 . | . . . High Security . | . . . Max Security . | . . . Squads Dispatched 2 | . 1 1 Investigation . | . . . Extermination . | . . . Reinforcement 2 | . 1 1 Assault . | . . . Garrison . | . . . Intercept . | . . . Searches Triggered . | . . . Construction Impeded . | . . . Haulers Reinforced . | . . . Active Scanning Responses . | . . . Cargo Convoy Interrupts . | . . . Stealth | -11 -10 -9 --------- Run | Jun Mat Mat Distress Signals 6 | . 1 5 Communications Jammed . | . . . Distress Signals . | . . . Times Spotted 43 | . 11 32 Peak Tracking Total 7 | . 3 7 Tactical Retreats 2 | . 1 1 Traps | -11 -10 -9 ------- Run | Jun Mat Mat Traps Triggered 1 | . . 1 Indirectly . | . . . Trap Hack Attempts . | . . . Triggered . | . . . Disarmed . | . . . Reprogrammed . | . . . Reused . | . . . Traps Extracted . | . . . Installed . | . . . Triggered . | . . . Machines | -11 -10 -9 ---------- Run | Jun Mat Mat Machines Disabled 2 | . . 2 Max in Single Turn 1 | . . 1 Machines Repaired . | . . . Machines Sabotaged . | . . . Overloaded Fab Kills . | . . . Hacking | -11 -10 -9 --------- Run | Jun Mat Mat Machines Accessed 1 | . 1 . Terminals 1 | . 1 . Fabricators . | . . . Repair Stations . | . . . Recycling Units . | . . . Scanalyzers . | . . . Garrison Access . | . . . Total Hacks 3 | . 3 . Successful 1 | . 1 . Failed 2 | . 2 . Catastrophic 1 | . 1 . Database Lockouts . | . . . Manual . | . . . Terminals 3 | . 3 . Fabricators . | . . . Repair Stations . | . . . Recycling Units . | . . . Scanalyzers . | . . . Garrison Access . | . . . Terminal Hacks 1 | . 1 . Zone Layout 1 | . 1 . Fabricator Hacks . | . . . Repair Station Hacks . | . . . Recycling Unit Hacks . | . . . Scanalyzer . | . . . Garrison Access Hacks . | . . . Unauthorized Hacks . | . . . Terminals . | . . . Fabricators . | . . . Repair Stations . | . . . Recycling Units . | . . . Scanalyzers . | . . . Garrison Access . | . . . Data Cores Recovered . | . . . Used . | . . . Hacking Detections 1 | . 1 . Full Trace Events . | . . . Feedback Events . | . . . Feedback Blocked . | . . . Robot Schematics Acquired . | . . . Robots Built . | . . . Authchips . | . . . Time . | . . . Total Robot Build Rating . | . . . Part Schematics Acquired . | . . . Parts Built . | . . . Authchips . | . . . Time . | . . . Total Part Build Rating . | . . . Parts Repaired . | . . . Time . | . . . Parts Recycled . | . . . Recycled Matter . | . . . Retrieved Matter . | . . . Retrieved Components . | . . . Parts Scanalyzed . | . . . Part Schematics Acquired . | . . . Parts Damaged . | . . . Bothacking | -11 -10 -9 ------------ Run | Jun Mat Mat Used RIF Installer . | . . . Robots Hacked . | . . . Non-combat . | . . . Combat . | . . . Robot Hacks Applied . | . . . Relay Couplers Released . | . . . Fabnet Peak Effective % . | . . . Robots Rewired . | . . . Allies Hacked . | . . . Hacks Repelled . | . . . Allies | -11 -10 -9 -------- Run | Jun Mat Mat Total Allies . | . . . Largest Group . | . . . Highest-Rated Group . | . . . Highest-Rated Ally . | . . . Total Orders . | . . . Ally Attacks . | . . . Total Damage . | . . . Kills . | . . . Allies Corrupted . | . . . Allies Melted . | . . . Intel | -11 -10 -9 ------- Run | Jun Mat Mat Robot Analysis Total . | . . . Derelict Logs Recovered . | . . . Drone Launches . | . . . Drone Recoveries . | . . . Exploration | -11 -10 -9 ------------- Run | Jun Mat Mat Turns Passed 1609 | 3 821 785 Spaces Moved 496 | 1 336 159 Core . | . . . Treads 101 | . . 101 Legs 395 | 1 336 58 Wheels . | . . . Hover . | . . . Flight . | . . . Fastest Speed 120 | 120 120 320 Average Speed 254 | 120 220 326 Slowest Speed 480 | 120 400 480 Overloaded Moves . | . . . Propulsion Burnouts . | . . . Robots Hopped . | . . . Cave-ins Triggered . | . . . Exploration Rate (%) 29 | 2 57 29 Regions Visited 2 Branch Regions . Pre-discovered Areas . | . . . Known Exits Taken . | . . . Unknown Exits Taken 2 | 1 1 . Scrap Searched . | . . . Spaces Dug . | . . . Terrain Destroyed 48 | . . 48 Melee . | . . . Projectile . | . . . AOE 48 | . . 48 Terrain Rammed . | . . . Walls Destroyed . | . . . Machines Disabled . | . . . Actions | -11 -10 -9 --------- Run | Jun Mat Mat Total 723 | 3 391 329 Wait 122 | . 26 96 Move 494 | . 335 159 Hop . | . . . Pick Up 10 | . 8 2 Fast Attach 2 | . 1 1 Attach 7 | . . 7 Detach 1 | . . 1 Swap 5 | 1 3 1 Drop 7 | 2 3 2 Fire 75 | . 15 60 Melee . | . . . Ram . | . . . Kick . | . . . Crush . | . . . Escape Stasis . | . . . Rewire . | . . . Trap . | . . . Miscellaneous . | . . . Route ------- -11/Junkyard -10/Materials (discovered 3 exits: [*Mat x2] / [*Min]) -9/Materials (discovered 1 exit: [*Min]) History --------- Turn | Location | Event 4 | -11/Junkyard | Discovered new exit (range 0) 4 | -11/Junkyard | Entered Materials 216 | -10/Materials | Discovered new exit (range 14) 317 | -10/Materials | Build established: Mutant 339 | -10/Materials | Discovered new exit (range 15) 384 | -10/Materials | Discovered new exit (range 13) 825 | -10/Materials | Entered another Materials area 825 | -9/Materials | Evolved 2 slots: Propulsion x1, Utility x1 1119 | -9/Materials | Lost 3 parts (1n1u1w) 1120 | -9/Materials | Destroyed 7 combat bots 1395 | -9/Materials | Discovered new exit (range 12) 1582 | -9/Materials | Core integrity fell below 50% 1603 | -9/Materials | Core integrity fell below 20% 1610 | -9/Materials | Destroyed by Y-45 Defender with Heavy Assault Rifle Last Messages --------------- 01556_ Critical hit (Burn: +37). 01576_ R-06 Scavenger collects Imp. Ion Engine. 01579_ R-06 Scavenger collects Lgt. Treads. 01581_ Hvy. Assault Rifle destroyed. 01584_ R-06 Scavenger collects Beam Rifle. 01587_ Critical hit (Burn: +37). 01587_ Lgt. Treads destroyed. 01590_ Aluminum Leg destroyed. 01593_ Lgt. Treads destroyed. 01596_ Lgt. Assault Rifle destroyed. 01601_ U-05 Engineer builds a Door. 01602_ U-05 Engineer lays Concrete. 01602_ Grenade Launcher destroyed. 01603_ U-05 Engineer lays Concrete. 01605_ G-34 Mercenary suffers critical hit (Burn). 01605_ U-05 Engineer builds a Wall. 01606_ U-05 Engineer lays Concrete. 01608_ M-13 Machinist repairs G-47 Trooper. 01608_ U-05 Engineer lays Concrete. 01610_ M-13 Machinist repairs Lgt. Nuclear Core. Map ----- +----------------------------------------------------+ | ?????????????????????????????????????##+## | | ????????????????????????????????????? # #### | | ????????????????????########????????? T # ???### | | ????????????????????# #???????# # #????#? | | ????????????????????# #???????#""" # #?????? | | ????????????????????# #???????#""" # #????? | | ????????????????????# #???????#""" # #?####+ | | ????????????????????#^ """#???????# # #?# | | ????????????????????# """#???????#""" # ### """ | | ????????????????????# """#???????#""" # # """ | | ????????????????????# """#???????#""" # + """ | | ????????????????????# """#???????# + # | | ????????????????????# ######### # # | | ????????????????????#####+## ####### # | | ??????????????????????# # | | ??????????????????????# < %##/## | | ??????????????????????# """ | | ????????????#####?????# # #" """ | | ???????????## ##### # "!"!" #T """ | | ?????????? u #""!"!""#" """ % | | ?????????? u ######### % | | ?????????? [ %% | | ???????????## ### Yg #######+#######+## | | ????????????###+????# mg #? # | | ??????????# # ; #???""" # | | ??????????# Y/ @# #????"" # | | ?????????????"" ### # #????"" # | | ??????????????????????##%##? #???? ?# | | ???????????????????????# #??? #??? ??### # | | ???????????????????????# #???? #???#?????#### | | ???????????????????????# #???? #????????????? | | ???????????????????????# #?????+#####????????????? | | ???????????????????????# #???????????????????????? | | ??????????????????????? ???????????????????????? | | ??????????????????????? ???????????????????????? | | ??????????????????????? ???????????????????????? | | ??????????????????????? ???????????????????????? | | ??????????????????????? ???????????????????????? | | ??????????????????????? ???????????????????????? | | ??????????????????????? ???????????????????????? | | ??????????????????????? ???????????????????????? | | ?????????????????????????????????????????????????? | | ?????????????????????????????????????????????????? | | ?????????????????????????????????????????????????? | | ?????????????????????????????????????????????????? | | ?????????????????????????????????????????????????? | | ?????????????????????????????????????????????????? | | ?????????????????????????????????????????????????? | | ?????????????????????????????????????????????????? | | ?????????????????????????????????????????????????? | +----------------------------------------------------+ Best States ------------- Heat Dissipation 28 Energy Generation 10 Energy Capacity 250 Matter Stores 300 Matter Capacity 300 Sight Range 16 Terrain Scan Density 10 Armor Coverage 150 Evasion (%) 55 Recoil Reduction 2 Item Schematics ----------------- None Robot Schematics ------------------ None Fabricated ------------ Nothing Alien Tech Used ----------------- None Achievements -------------- None Challenges ------------ None Game ------ Seed WeightBombardmentRegenerator Manual? 0 Play Time 00:11:41 Cumulative 117.5 hours Start 2023.05.13 @ 21:02:58 End 2023.05.13 @ 21:10:29 Sessions 1 Manual Loads 0 Difficulty Rogue Special Mode None Game No. 111 Rogue 63 Adventurer 22 Explorer 26 Win Type - Total 0 Types 0/0/0/0/0/0/0/0/0 Lore% 38 Gallery% 57 Achievement% 66 Wizard Run 0 Options --------- ASCII 0 Keyboard 0 Movement Mouse Keybinds 0 Fullscreen 0 Font 16/Smallcaps Map View 76x50 Tactical HUD 1 Map Filters NONE Filters BRIGHTNESS(125)|SATURATION(75)|LOW_CONTRAST(0,16,30)|SHIFT_HUE(130) Steam 1 RUN: 14148696-fff8-44b8-8d16-e2ab9f138c57